bitfinex/quotes_BTCUSD_20230117
["timestamp","ask_amount","ask_price","bid_price","bid_amount"]
[1673916749266,0.00484976,21111.0,21110.0,1.035419]
[1673916749520,0.00484976,21111.0,21110.0,1.175419]
[1673916750614,0.00484976,21111.0,21110.0,0.850319]
[1673916750880,0.00484976,21111.0,21110.0,0.600789]
[1673916751174,0.00484976,21111.0,21110.0,0.279]
[1673916751446,0.32663876,21111.0,21110.0,0.279]
[1673916751719,0.32706338,21111.0,21106.0,0.845586]
[1673916752010,0.19557571,21111.0,21107.0,0.473769]
[1673916752271,0.2157231,21111.0,21110.0,0.141]
[1673916752532,0.02499715,21111.0,21110.0,0.462789]
[1673916752806,0.02499715,21111.0,21110.0,0.588489]
[1673916753076,0.02499715,21111.0,21110.0,0.447489]
[1673916753331,0.02499715,21111.0,21110.0,0.747489]
[1673916754204,0.00484976,21111.0,21110.0,0.747489]
[1673916754467,0.00484976,21111.0,21110.0,0.447489]
[1673916754719,0.07939438,21111.0,21110.0,0.460789]
[1673916754978,0.07939438,21111.0,21110.0,0.139]
[1673916755275,0.09786164,21111.0,21110.0,0.139]
[1673916755786,0.02374164,21111.0,21110.0,0.139]
[1673916756042,0.02331702,21111.0,21108.0,0.1247]
[1673916756299,0.02331702,21111.0,21110.0,0.141]
[1673916757334,0.02331702,21111.0,21108.0,0.2637]
[1673916757601,0.02331702,21111.0,21108.0,0.1247]
[1673916757876,0.02331702,21111.0,21110.0,0.141]
[1673916758165,0.69624997,21111.0,21110.0,0.141]
[1673916758423,0.0360475,21109.0,21100.0,0.47659046]
[1673916758693,0.804059,21108.0,21100.0,0.47659046]
[1673916758959,0.15,21106.0,21100.0,0.47659046]
[1673916759218,0.51251495,21105.0,21100.0,0.47659046]
[1673916759482,0.19072595,21104.0,21100.0,0.47659046]
[1673916759745,0.0360475,21109.0,21100.0,1.07021251]
[1673916760027,0.0360475,21109.0,21101.0,1.19512351]
[1673916760288,0.0360475,21109.0,21103.0,1.421571]
[1673916760289,0.22677345,21109.0,21103.0,1.421571]
[1673916760576,0.0360475,21109.0,21104.0,0.91863174]
[1673916760865,0.0360475,21109.0,21108.0,0.8807]
[1673916761127,0.0420475,21109.0,21108.0,3.22052974]
[1673916761389,0.02331702,21111.0,21108.0,4.14732974]
[1673916761650,0.02331702,21111.0,21110.0,0.2514]
[1673916761937,0.02331702,21111.0,21110.0,0.321643]
[1673916761938,0.02374164,21111.0,21110.0,0.321643]
[1673916762228,0.02331702,21111.0,21110.0,1.569061]
[1673916762499,0.02331702,21111.0,21110.0,0.321643]
[1673916762752,0.02331702,21111.0,21108.0,0.473754]
[1673916763029,0.21446759,21111.0,21106.0,0.473795]
[1673916763295,0.21446759,21111.0,21105.0,0.4921]
[1673916763296,0.51251495,21110.0,21105.0,0.840907]
[1673916763791,0.19072595,21109.0,21108.0,0.022]
[1673916763794,0.19072595,21109.0,21108.0,0.0219207]
[1673916764043,0.31344164,21111.0,21108.0,0.0439207]
[1673916764316,0.02331702,21111.0,21109.0,0.11968905]
[1673916764581,0.007,21110.0,21109.0,0.11968905]
[1673916764844,0.02331702,21111.0,21107.0,0.473775]
[1673916765117,0.02331702,21111.0,21108.0,0.3]
[1673916765642,0.21404297,21111.0,21105.0,0.275]
[1673916765924,0.21404297,21111.0,21104.0,0.473829]
[1673916765925,0.07,21109.0,21108.0,0.002]
[1673916766419,0.07,21109.0,21104.0,0.473829]
[1673916766420,0.321789,21109.0,21104.0,0.473829]
[1673916766423,0.321789,21109.0,21108.0,0.002]
[1673916766690,0.94056657,21110.0,21104.0,0.473829]
[1673916766691,0.74984062,21110.0,21104.0,0.473829]
[1673916766953,0.321789,21109.0,21104.0,0.947651]
[1673916767217,0.19072595,21110.0,21105.0,0.1257]
[1673916767480,0.02331702,21111.0,21106.0,0.91526105]
[1673916767481,0.07,21109.0,21106.0,0.91526105]
[1673916767759,0.07,21109.0,21107.0,0.321789]
[1673916768021,0.07,21109.0,21108.0,0.133018]
[1673916768280,0.07042462,21109.0,21107.0,0.473774]
[1673916768548,0.07042462,21109.0,21106.0,0.473783]
[1673916768803,0.26115057,21109.0,21106.0,0.473783]
[1673916769063,0.00042462,21109.0,21106.0,0.473783]
[1673916769320,0.069,21110.0,21106.0,0.473783]
[1673916769570,0.19072595,21110.0,21105.0,0.773801]
[1673916769844,0.19072595,21110.0,21106.0,0.022]
[1673916770168,0.007,21109.0,21106.0,0.11968905]
[1673916770384,0.007,21109.0,21106.0,0.12168905]
[1673916770638,0.97073002,21111.0,21105.0,0.947622]
[1673916770917,0.007,21110.0,21106.0,0.021]
[1673916771186,0.19072595,21110.0,21105.0,1.06731105]
[1673916771670,0.19072595,21109.0,21104.0,0.473842]
[1673916771930,0.19072595,21108.0,21104.0,0.473842]
[1673916772758,0.473709,21110.0,21105.0,0.3]
[1673916773033,0.007,21108.0,21106.0,0.11968905]
[1673916773303,0.473709,21110.0,21105.0,0.773814]
[1673916773566,0.007,21108.0,21106.0,1.06728105]
[1673916773835,0.47331702,21111.0,21107.0,0.321789]
[1673916774116,0.47331702,21111.0,21107.0,0.59346505]
[1673916774375,0.00042462,21110.0,21107.0,0.59346505]
[1673916774624,0.00042462,21110.0,21107.0,0.473776]
[1673916775441,0.003,21108.0,21107.0,0.473776]
[1673916775964,0.003,21108.0,21107.0,0.002]
[1673916776220,0.07712,21108.0,21107.0,0.002]
[1673916776921,0.473738,21109.0,21104.0,0.947662]
[1673916777144,0.47331702,21111.0,21107.0,0.473776]
[1673916777365,0.02331702,21111.0,21108.0,0.44147805]
[1673916777592,0.02331702,21111.0,21109.0,0.132992]
[1673916777830,0.02331702,21111.0,21107.0,0.495776]
[1673916778128,0.21446759,21111.0,21107.0,0.495776]
[1673916778395,0.68815859,21111.0,21107.0,0.495776]
[1673916778655,0.68815859,21111.0,21108.0,0.94787226]
[1673916778915,0.02331702,21111.0,21108.0,1.06756131]
[1673916779184,0.02331702,21111.0,21109.0,0.94787226]
[1673916779478,0.09331702,21111.0,21109.0,1.06756131]
[1673916779729,0.16331702,21111.0,21110.0,1.26966126]
[1673916779984,0.02331702,21111.0,21110.0,0.94787226]
[1673916780773,0.02331702,21111.0,21109.0,0.94780693]
[1673916781034,0.02331702,21111.0,21109.0,1.42153293]
[1673916781304,0.02331702,21111.0,21110.0,1.26959593]
[1673916781555,0.02331702,21111.0,21110.0,2.33670298]
[1673916781846,0.02331702,21111.0,21110.0,2.51901393]
[1673916782172,0.09331702,21111.0,21110.0,2.51701393]
[1673916782425,0.10074164,21111.0,21110.0,1.29059593]
[1673916782693,0.02374164,21111.0,21110.0,0.94780693]
[1673916782960,0.02374164,21111.0,21110.0,0.96980693]
[1673916782961,0.03074164,21111.0,21110.0,0.96980693]
[1673916783227,0.03031702,21111.0,21110.0,0.96980693]
[1673916783518,0.03731702,21111.0,21110.0,0.99080693]
[1673916784038,0.03731702,21111.0,21110.0,1.46451593]
[1673916784294,0.03731702,21111.0,21110.0,2.51701393]
[1673916784295,0.02331702,21111.0,21110.0,2.51701393]
[1673916784543,0.02331702,21111.0,21110.0,2.63670298]
[1673916784797,0.02331702,21111.0,21110.0,3.11891562]
[1673916785052,0.02331702,21111.0,21110.0,2.64171393]
[1673916785053,0.02631702,21111.0,21110.0,2.64171393]
[1673916785324,0.02631702,21111.0,21110.0,2.21701393]
[1673916785581,0.02631702,21111.0,21110.0,1.42151593]
[1673916785582,0.02321907,21111.0,21110.0,1.42151593]
[1673916785837,0.02321907,21111.0,21110.0,1.74330493]
[1673916786119,0.00475181,21111.0,21110.0,1.74330493]
[1673916786373,0.00475181,21111.0,21110.0,1.42151593]
[1673916786620,0.00475181,21111.0,21110.0,1.74330493]
[1673916786893,0.01175181,21111.0,21110.0,1.74330493]
[1673916787136,0.00475181,21111.0,21110.0,1.74330493]
[1673916787633,0.00475181,21111.0,21110.0,2.51701393]
[1673916787634,0.00475181,21111.0,21110.0,2.64271393]
[1673916787894,0.00475181,21111.0,21110.0,2.66371393]
[1673916788172,0.00475181,21111.0,21110.0,2.64271393]
[1673916788424,0.01175181,21111.0,21110.0,2.66371393]
[1673916788690,0.00475181,21111.0,21110.0,2.64271393]
[1673916789074,0.01175181,21111.0,21110.0,2.66371393]
[1673916789581,0.00475181,21111.0,21110.0,2.64271393]
[1673916789852,0.01175181,21111.0,21110.0,2.66471393]
[1673916791422,0.20290238,21111.0,21110.0,0.96980693]
[1673916791931,0.33396543,21111.0,21110.0,0.96980693]
[1673916792172,0.33354081,21111.0,21110.0,0.96980693]
[1673916792444,0.01175181,21111.0,21110.0,0.96980693]
[1673916793209,0.01175181,21111.0,21110.0,1.74351593]
[1673916793438,0.01175181,21111.0,21110.0,2.06530493]
[1673916794170,0.01175181,21111.0,21110.0,1.76530493]
[1673916794669,0.01175181,21111.0,21110.0,1.44351593]
[1673916794914,0.01175181,21111.0,21110.0,0.96980693]
[1673916795696,0.01175181,21111.0,21110.0,2.03691398]
[1673916795943,0.01175181,21111.0,21110.0,2.78440298]
[1673916796481,0.01175181,21111.0,21110.0,2.66471393]
[1673916798234,0.01175181,21111.0,21110.0,2.78971393]
[1673916798726,0.01175181,21111.0,21110.0,1.716207]
[1673916799282,0.01175181,21111.0,21110.0,1.291207]
[1673916799517,0.20247776,21111.0,21110.0,1.291207]
[1673916799769,0.01175181,21111.0,21110.0,0.495709]
[1673916800797,0.01175181,21111.0,21110.0,0.969418]
[1673916801013,0.01175181,21111.0,21110.0,1.291207]
[1673916801297,0.01175181,21111.0,21110.0,1.416807]
[1673916802054,0.01175181,21111.0,21110.0,1.716807]
[1673916803781,0.01175181,21111.0,21110.0,2.19400869]
[1673916804041,0.01175181,21111.0,21110.0,2.31970869]
[1673916804296,0.01175181,21111.0,21110.0,2.46142334]
[1673916804567,0.01175181,21111.0,21110.0,3.40897779]
[1673916804798,0.00343217,21111.0,21110.0,3.760037]
[1673916805066,0.00343217,21111.0,21110.0,4.04312996]
[1673916805535,0.00343217,21111.0,21110.0,4.82896833]
[1673916805776,0.00343217,21111.0,21110.0,5.18197072]
[1673916806255,0.00343217,21111.0,21110.0,4.67154125]
[1673916806988,0.00343217,21111.0,21110.0,4.45931111]
[1673916807244,0.00343217,21111.0,21110.0,4.67157311]
[1673916807500,0.00343217,21111.0,21110.0,4.45931111]
[1673916807743,0.00343217,21111.0,21110.0,4.67157486]
[1673916807984,0.00343217,21111.0,21110.0,4.38854974]
[1673916808243,0.00343217,21111.0,21110.0,4.67157486]
[1673916808490,0.00530131,21118.0,21110.0,5.13561212]
[1673916808744,0.19602726,21118.0,21116.0,0.1257]
[1673916809015,0.00530131,21118.0,21117.0,1.86201605]
[1673916809270,0.00530131,21118.0,21117.0,2.042327]
[1673916809515,0.00530131,21118.0,21117.0,1.742327]
[1673916810013,0.00530131,21118.0,21117.0,1.420656]
[1673916810254,0.00530131,21118.0,21117.0,1.814656]
[1673916811016,0.00530131,21118.0,21117.0,2.042445]
[1673916811274,0.00530131,21118.0,21117.0,2.136445]
[1673916811519,0.00530131,21118.0,21117.0,2.262145]
[1673916811769,0.00530131,21118.0,21117.0,2.387845]
[1673916812257,0.00530131,21118.0,21117.0,2.293845]
[1673916812773,0.00530131,21118.0,21117.0,2.86404669]
[1673916813012,0.00530131,21118.0,21117.0,2.77104669]
[1673916813263,0.00530131,21118.0,21117.0,2.86404669]
[1673916814237,0.00530131,21118.0,21117.0,1.661893]
[1673916814752,0.00530131,21118.0,21117.0,0.866552]
[1673916814993,0.00530131,21118.0,21117.0,0.093]
[1673916815492,0.52691031,21118.0,21113.0,0.473628]
[1673916815785,0.39684726,21118.0,21113.0,0.473628]
[1673916816023,0.39584726,21118.0,21113.0,0.473628]
[1673916816274,0.21912131,21118.0,21117.0,0.006]
[1673916816523,0.21912131,21118.0,21112.0,0.473654]
[1673916816524,0.53541031,21118.0,21112.0,0.473654]
[1673916816775,0.51251495,21117.0,21113.0,0.006]
[1673916817031,0.51251495,21117.0,21112.0,0.11968905]
[1673916817032,0.00042462,21116.0,21112.0,0.11968905]
[1673916817271,0.19115057,21116.0,21111.0,0.47643844]
[1673916817523,0.19072595,21115.0,21111.0,0.47643844]
[1673916818511,0.00042462,21116.0,21113.0,0.006]
[1673916818756,0.00042462,21116.0,21113.0,0.11968905]
[1673916819016,0.001,21115.0,21114.0,0.11968905]
[1673916819245,0.001,21115.0,21113.0,0.473639]
[1673916819494,0.001,21115.0,21113.0,0.479639]
[1673916819744,0.41110131,21118.0,21114.0,0.321789]
[1673916819984,0.007,21115.0,21114.0,0.11968905]
[1673916820223,0.41110131,21118.0,21113.0,0.947279]
[1673916820467,0.60182726,21118.0,21113.0,1.06696805]
[1673916820713,0.19072595,21117.0,21111.0,0.47643844]
[1673916820967,0.1253,21115.0,21111.0,0.00275844]
[1673916821213,0.51251495,21114.0,21113.0,0.086]
[1673916821514,0.321789,21114.0,21111.0,0.00275844]
[1673916821760,0.001,21117.0,21112.0,0.947306]
[1673916822006,0.61905247,21118.0,21113.0,0.11968905]
[1673916822258,0.61905247,21118.0,21114.0,0.11968905]
[1673916822510,0.321789,21117.0,21114.0,0.11968905]
[1673916822749,0.001,21117.0,21113.0,0.473636]
[1673916823023,0.61905247,21118.0,21113.0,0.473636]
[1673916823272,0.67655726,21118.0,21114.0,0.007]
[1673916823516,0.49271793,21117.0,21114.0,0.007]
[1673916823762,1.06128416,21116.0,21114.0,0.007]
[1673916824011,0.321789,21115.0,21114.0,0.007]
[1673916824266,0.80273611,21115.0,21111.0,0.00275844]
[1673916824512,0.44681362,21114.0,21111.0,0.00275844]
[1673916824758,0.321789,21113.0,21111.0,0.00275844]
[1673916825003,0.12502462,21114.0,21111.0,0.00275844]
[1673916825248,0.00042462,21114.0,21111.0,0.00275844]
[1673916825517,0.00142462,21114.0,21111.0,0.08875844]
[1673916825754,0.00142462,21114.0,21111.0,0.00275844]
[1673916825995,0.00142462,21114.0,21111.0,0.00975844]
[1673916825996,0.00842462,21114.0,21111.0,0.00975844]
[1673916826242,0.00842462,21114.0,21111.0,0.00275844]
[1673916826243,0.00042462,21114.0,21111.0,0.00275844]
[1673916827238,0.00742462,21114.0,21111.0,0.00875844]
[1673916827790,0.01442462,21114.0,21111.0,0.01575844]
[1673916828791,0.014,21114.0,21111.0,0.01575844]
[1673916829046,1.09593216,21115.0,21111.0,0.00275844]
[1673916829294,0.955711,21115.0,21111.0,0.00275844]
[1673916829539,0.31301042,21114.0,21111.0,0.12244749]
[1673916829791,0.955727,21115.0,21111.0,0.00275844]
[1673916830038,0.955727,21115.0,21111.0,0.12244749]
[1673916830544,0.955727,21115.0,21111.0,0.00275844]
[1673916830798,1.15345295,21115.0,21111.0,0.00975844]
[1673916831061,0.321657,21114.0,21111.0,0.00275844]
[1673916831335,0.1252,21112.0,21111.0,0.00875844]
[1673916831562,1.394185,21112.0,21111.0,0.00275844]
[1673916831804,1.402685,21112.0,21111.0,0.00975844]
[1673916832087,1.552685,21112.0,21111.0,0.00275844]
[1673916832302,1.40310962,21112.0,21111.0,0.00846987]
[1673916833243,0.93644562,21112.0,21111.0,0.00946987]
[1673916833512,0.92944562,21112.0,21111.0,0.00246987]
[1673916833771,0.93644562,21112.0,21111.0,0.00946987]
[1673916834027,1.41010962,21112.0,21111.0,0.00946987]
[1673916834585,0.81124562,21112.0,21111.0,0.00946987]
[1673916834845,0.81124562,21112.0,21111.0,0.12915892]
[1673916834846,0.007,21112.0,21111.0,0.12915892]
[1673916835125,0.007,21112.0,21111.0,1.10481287]
[1673916835652,0.007,21112.0,21111.0,0.80481287]
[1673916835923,0.007,21112.0,21111.0,1.10481287]
[1673916836205,0.4295,21116.0,21111.0,1.09781287]
[1673916836466,0.56972116,21116.0,21112.0,0.26154105]
[1673916836730,0.56972116,21116.0,21112.0,0.11968905]
[1673916836731,0.00042462,21115.0,21112.0,0.11968905]
[1673916836986,0.00042462,21115.0,21111.0,0.48315587]
[1673916837253,0.82416877,21117.0,21112.0,0.3]
[1673916837511,1.23064308,21118.0,21113.0,0.11968905]
[1673916837805,0.88004831,21118.0,21114.0,0.11968905]
[1673916838063,0.00042462,21117.0,21114.0,0.11968905]
[1673916838346,0.00642462,21117.0,21113.0,0.947245]
[1673916838621,0.006,21117.0,21113.0,0.947245]
[1673916838894,0.19672595,21117.0,21113.0,0.947245]
[1673916839178,0.00042462,21116.0,21113.0,0.947245]
[1673916839432,0.19115057,21116.0,21113.0,0.947245]
[1673916839701,0.19115057,21116.0,21113.0,0.473624]
[1673916839975,0.00042462,21116.0,21113.0,0.473624]
[1673916840726,0.00042462,21116.0,21114.0,0.007]
[1673916840728,0.14022116,21117.0,21114.0,0.007]
[1673916840994,1.10103621,21118.0,21114.0,0.007]
[1673916840995,0.74436747,21118.0,21114.0,0.11968905]
[1673916841508,0.006,21116.0,21114.0,0.11968905]
[1673916841774,1.41674625,21118.0,21113.0,0.473625]
[1673916842031,0.006,21117.0,21114.0,0.007]
[1673916842570,1.35309859,21118.0,21113.0,0.59331405]
[1673916842841,0.35572969,21119.0,21114.0,0.41968905]
[1673916843194,0.00513492,21119.0,21116.0,0.1257]
[1673916843455,0.00513492,21119.0,21117.0,1.088848]
[1673916843715,0.00513492,21119.0,21118.0,0.321657]
[1673916843969,0.00513492,21119.0,21117.0,0.473552]
[1673916844781,0.00513492,21119.0,21118.0,0.3]
[1673916845058,0.00513492,21119.0,21118.0,0.621657]
[1673916845317,0.00513492,21119.0,21118.0,1.568715]
[1673916846388,0.00513492,21119.0,21118.0,2.17101669]
[1673916846639,0.00513492,21119.0,21118.0,2.65873008]
[1673916846901,0.00513492,21119.0,21118.0,1.879515]
[1673916847346,0.00513492,21119.0,21118.0,1.568715]
[1673916847350,0.00513492,21119.0,21118.0,1.660715]
[1673916847609,0.00513492,21119.0,21118.0,1.568715]
[1673916848151,0.00513492,21119.0,21118.0,2.17061669]
[1673916848933,0.00513492,21119.0,21118.0,2.26261669]
[1673916849190,0.00513492,21119.0,21118.0,2.75009692]
[1673916850280,0.00513492,21119.0,21118.0,2.17161669]
[1673916850561,0.00513492,21119.0,21118.0,2.26361669]
[1673916851644,0.00513492,21119.0,21118.0,2.38861669]
[1673916852156,0.00513492,21119.0,21118.0,2.86999371]
[1673916852411,0.00513492,21119.0,21118.0,2.75030466]
[1673916852671,0.00513492,21119.0,21118.0,2.38861669]
[1673916853194,0.00513492,21119.0,21118.0,3.28571624]
[1673916853458,0.00513492,21120.0,21119.0,0.07740058]
[1673916853934,0.00513492,21120.0,21119.0,3.97627629]
[1673916853937,0.00513492,21120.0,21119.0,2.89010656]
[1673916854217,0.00513492,21120.0,21119.0,3.19010656]
[1673916854728,0.00513492,21120.0,21119.0,3.28210656]
[1673916855019,0.19586087,21120.0,21119.0,1.79177736]
[1673916855270,0.00513492,21120.0,21119.0,1.79177736]
[1673916855804,0.00513492,21120.0,21119.0,1.88377736]
[1673916856057,0.00513492,21120.0,21119.0,1.79177736]
[1673916856358,0.00513492,21120.0,21119.0,2.18377736]
[1673916856880,0.00513492,21120.0,21119.0,1.79177736]
[1673916857397,0.19586087,21120.0,21119.0,1.18787567]
[1673916857685,0.00513492,21120.0,21119.0,1.18787567]
[1673916859247,0.00555954,21120.0,21119.0,0.09918267]
[1673916859254,0.00513492,21120.0,21119.0,0.09918267]
[1673916859538,0.07925492,21120.0,21119.0,0.09918267]
[1673916859799,0.07925492,21120.0,21119.0,0.00718267]
[1673916860058,0.40233654,21120.0,21119.0,0.09118267]
[1673916860613,0.40133654,21120.0,21119.0,0.00718267]
[1673916860872,0.40733654,21120.0,21119.0,0.00718267]
[1673916861137,0.32679192,21120.0,21119.0,0.00718267]
[1673916861931,0.80027592,21120.0,21119.0,0.00718267]
[1673916862209,1.39988454,21120.0,21119.0,0.00718267]
[1673916862470,1.39988454,21120.0,21119.0,0.07218267]
[1673916862745,1.39988454,21120.0,21119.0,0.00718267]
[1673916863362,1.40788454,21120.0,21119.0,0.01418267]
[1673916863613,1.39988454,21120.0,21119.0,0.00718267]
[1673916863823,1.40788454,21120.0,21119.0,0.01418267]
[1673916864040,1.40788454,21120.0,21119.0,0.00718267]
[1673916864288,1.41588454,21120.0,21119.0,0.01418267]
[1673916865392,0.81627592,21120.0,21119.0,0.01418267]
[1673916865612,0.02113492,21120.0,21119.0,0.01418267]
[1673916866077,0.00513492,21120.0,21119.0,0.00718267]
[1673916866290,0.01313492,21120.0,21119.0,0.01418267]
[1673916866512,0.01313492,21120.0,21119.0,0.00718267]
[1673916867002,0.02113492,21120.0,21119.0,0.01418267]
[1673916867251,0.00513492,21120.0,21119.0,0.00718267]
[1673916868111,0.00513492,21120.0,21119.0,0.37218267]
[1673916868803,0.00513492,21120.0,21119.0,0.07218267]
[1673916869721,0.00555954,21120.0,21119.0,0.07218267]
[1673916869962,0.00513492,21120.0,21119.0,0.07218267]
[1673916871778,0.26998087,21120.0,21119.0,0.07218267]
[1673916872005,1.79850587,21120.0,21119.0,0.07218267]
[1673916872232,1.60777992,21120.0,21119.0,0.07218267]
[1673916872468,1.53365992,21120.0,21119.0,0.00718267]
[1673916872691,1.07217592,21120.0,21119.0,0.01218267]
[1673916872919,1.06017592,21120.0,21119.0,0.00718267]
[1673916873146,0.33779192,21120.0,21119.0,0.01418267]
[1673916873365,0.01613492,21120.0,21119.0,0.00718267]
[1673916873579,0.00513492,21120.0,21119.0,0.00718267]
[1673916873834,0.01613492,21120.0,21119.0,0.00718267]
[1673916874063,0.00513492,21120.0,21119.0,0.00718267]
[1673916874333,0.00613492,21120.0,21119.0,0.07518267]
[1673916874602,0.00613492,21120.0,21119.0,0.87034667]
[1673916874819,0.00613492,21120.0,21119.0,1.17034667]
[1673916875266,0.00513492,21120.0,21119.0,1.10234667]
[1673916875486,0.00613492,21120.0,21119.0,1.18334667]
[1673916875708,0.00613492,21120.0,21119.0,1.10234667]
[1673916875922,0.00613492,21120.0,21119.0,0.48068967]
[1673916876150,0.00713492,21120.0,21119.0,0.54868967]
[1673916876374,0.00713492,21120.0,21119.0,0.07518267]
[1673916877492,0.00755954,21120.0,21119.0,0.07518267]
[1673916877724,0.19828549,21120.0,21119.0,0.07518267]
[1673916877935,0.45491654,21120.0,21119.0,0.07518267]
[1673916878513,0.45449192,21120.0,21119.0,0.07518267]
[1673916878770,0.00713492,21120.0,21119.0,0.19487172]
[1673916879038,0.00713492,21120.0,21119.0,0.54868967]
[1673916879315,0.00713492,21120.0,21119.0,1.34385367]
[1673916879656,0.00713492,21120.0,21119.0,1.64385367]
[1673916881669,0.00704656,21120.0,21119.0,2.59111398]
[1673916882225,0.00704656,21120.0,21119.0,3.32922804]
[1673916882456,0.00704656,21120.0,21119.0,3.94144908]
[1673916882722,0.00704656,21120.0,21119.0,3.82167715]
[1673916882992,0.00704656,21120.0,21119.0,4.07752999]
[1673916883261,0.00704656,21120.0,21119.0,3.79489908]
[1673916883513,0.00704656,21120.0,21119.0,2.59111398]
[1673916884307,0.0221713,21120.0,21119.0,2.59111398]
[1673916885916,0.0221713,21120.0,21119.0,1.02219667]
[1673916886421,0.02259592,21120.0,21119.0,1.02219667]
[1673916886699,0.0221713,21120.0,21119.0,1.02219667]
[1673916887225,0.0221713,21120.0,21119.0,1.32219667]
[1673916888010,0.0221713,21120.0,21119.0,1.64385367]
[1673916888804,0.0221713,21120.0,21119.0,1.32219667]
[1673916889078,0.0221713,21120.0,21119.0,2.59111906]
[1673916890181,0.0221713,21120.0,21119.0,3.06832075]
[1673916890444,0.0221713,21120.0,21119.0,3.33566448]
[1673916890721,0.0221713,21120.0,21119.0,3.66694013]
[1673916890984,0.0221713,21120.0,21119.0,3.94984749]
[1673916891235,0.0221713,21120.0,21119.0,3.54813706]
[1673916891494,0.0221713,21120.0,21119.0,3.33568009]
[1673916892006,0.0221713,21120.0,21119.0,3.54813706]
[1673916892267,0.00704656,21120.0,21119.0,3.33568009]
[1673916892531,0.00704656,21120.0,21119.0,3.80857823]
[1673916892839,0.00704656,21120.0,21119.0,3.94982625]
[1673916893049,0.00704656,21120.0,21119.0,3.06832075]
[1673916893322,0.0221713,21120.0,21119.0,3.66676929]
[1673916893586,0.0221713,21120.0,21119.0,3.94967665]
[1673916893849,0.00832841,21120.0,21119.0,4.09022207]
[1673916894170,0.00832841,21120.0,21119.0,3.66680439]
[1673916895226,0.00480476,21122.0,21120.0,0.15]
[1673916895520,0.00480476,21122.0,21121.0,1.562033]
[1673916895780,0.00480476,21122.0,21121.0,1.862033]
[1673916896053,0.00480476,21122.0,21121.0,1.388571]
[1673916896856,0.01380476,21122.0,21121.0,1.393571]
[1673916898608,0.01380476,21122.0,21121.0,1.251924]
[1673916898866,0.01380476,21122.0,21121.0,0.778462]
[1673916899117,0.01380476,21122.0,21121.0,0.478462]
[1673916901122,0.01380476,21122.0,21121.0,1.573581]
[1673916901647,0.01380476,21122.0,21121.0,1.57331]
[1673916902161,0.01380476,21122.0,21121.0,1.099848]
[1673916902426,0.01422938,21122.0,21121.0,0.005]
[1673916902670,0.48766938,21122.0,21121.0,0.005]
[1673916902929,0.94352638,21122.0,21121.0,0.005]
[1673916903182,1.41696638,21122.0,21121.0,0.005]
[1673916903711,1.62733999,21122.0,21121.0,0.005]
[1673916903940,2.40130874,21122.0,21121.0,0.005]
[1673916904188,2.69904371,21122.0,21121.0,0.005]
[1673916904698,2.69904371,21122.0,21121.0,0.00488348]
[1673916904962,2.97095837,21122.0,21114.0,0.473612]
[1673916905216,0.1249,21117.0,21114.0,0.59330105]
[1673916905463,0.1249,21117.0,21114.0,0.473612]
[1673916905464,0.51238295,21116.0,21114.0,0.473612]
[1673916905792,0.19072595,21116.0,21114.0,0.473612]
[1673916906007,0.1249,21117.0,21114.0,0.473612]
[1673916906270,0.1249,21117.0,21114.0,0.474612]
[1673916907025,0.1249,21117.0,21114.0,0.473612]
[1673916907269,0.005,21116.0,21115.0,0.3]
[1673916908017,1.443824,21119.0,21115.0,0.3]
[1673916908306,0.037,21117.0,21114.0,0.002]
[1673916908543,0.321657,21116.0,21113.0,0.62528056]
[1673916908808,0.321657,21116.0,21115.0,0.014]
[1673916908809,0.19572595,21116.0,21115.0,0.014]
[1673916909059,0.599236,21118.0,21113.0,0.01]
[1673916909305,0.321657,21117.0,21115.0,0.001]
[1673916909611,0.321657,21116.0,21113.0,0.90331205]
[1673916909807,0.599236,21118.0,21113.0,0.783623]
[1673916910062,0.008,21116.0,21113.0,0.91731205]
[1673916910306,0.008,21116.0,21113.0,0.797623]
[1673916910811,0.78996195,21118.0,21113.0,0.31]
[1673916911055,0.78996195,21118.0,21115.0,0.002]
[1673916911304,0.78996195,21118.0,21113.0,0.42968905]
[1673916911305,0.1249,21116.0,21113.0,0.12968905]
[1673916911565,0.1249,21116.0,21113.0,0.024]
[1673916911566,0.2509,21114.0,21113.0,0.024]
[1673916911814,0.795276,21114.0,21113.0,0.01]
[1673916912066,1.277395,21114.0,21113.0,0.01]
[1673916912356,1.277395,21114.0,21113.0,0.00828381]
[1673916912604,1.354395,21114.0,21113.0,0.00928381]
[1673916913357,1.277395,21114.0,21113.0,0.00828381]
[1673916913605,1.54512095,21114.0,21113.0,0.00928381]
[1673916913858,1.604595,21114.0,21113.0,0.00928381]
[1673916915150,1.604595,21114.0,21113.0,0.00580411]
[1673916915389,1.60501962,21114.0,21113.0,0.00580411]
[1673916916170,2.31965115,21114.0,21113.0,0.00580411]
[1673916916443,2.68790361,21114.0,21113.0,0.00580411]
[1673916916677,2.60307208,21114.0,21113.0,0.00580411]
[1673916916931,2.23481962,21114.0,21113.0,0.00580411]
[1673916917237,1.605795,21114.0,21113.0,0.12549316]
[1673916917441,1.345895,21114.0,21113.0,0.00580411]
[1673916917689,1.470895,21114.0,21113.0,0.00580411]
[1673916918991,1.603895,21114.0,21113.0,0.00580411]
[1673916919222,1.88097686,21114.0,21113.0,0.00580411]
[1673916920003,1.88097686,21114.0,21110.0,0.01581295]
[1673916920004,1.603895,21114.0,21110.0,0.01581295]
[1673916920266,0.1257,21111.0,21110.0,0.01581295]
[1673916920516,0.921043,21111.0,21110.0,0.01581295]
[1673916920772,0.929543,21111.0,21110.0,0.01581295]
[1673916921090,1.079543,21111.0,21110.0,0.01581295]
[1673916921304,1.839943,21111.0,21110.0,0.02232035]
[1673916921576,1.839943,21111.0,21110.0,0.01707828]
[1673916921577,1.212543,21111.0,21110.0,0.01707828]
[1673916921842,1.212543,21111.0,21110.0,0.01010168]
[1673916922107,1.062543,21111.0,21106.0,2.6293]
[1673916922358,0.1249,21107.0,21105.0,0.01551326]
[1673916922620,0.321657,21106.0,21105.0,0.01377805]
[1673916922904,0.31562595,21107.0,21105.0,0.00862602]
[1673916923164,0.31562595,21107.0,21105.0,0.0051556]
[1673916923421,0.447357,21106.0,21104.0,0.01596982]
[1673916923701,0.1252,21107.0,21104.0,0.01596982]
[1673916924232,0.00042462,21106.0,21104.0,0.01596982]
[1673916924773,0.321657,21105.0,21104.0,0.01596982]
[1673916925256,0.00042462,21106.0,21104.0,0.01596982]
[1673916925258,0.1256,21105.0,21104.0,0.01596982]
[1673916925529,0.581057,21105.0,21104.0,0.01596982]